bitfinex-derivatives/quotes_BTCF0:USTF0_20250919
["timestamp","ask_amount","ask_price","bid_price","bid_amount"]
[1758302169806,1.84323117,115880.0,115870.0,0.34479727]
[1758302170211,1.06023117,115880.0,115870.0,0.007]
[1758302170408,1.84323117,115880.0,115870.0,0.34479727]
[1758302170810,2.18102844,115880.0,115870.0,0.34479727]
[1758302172302,2.18106844,115880.0,115870.0,0.34479727]
[1758302172602,2.18102844,115880.0,115870.0,0.34479727]
[1758302173210,2.18102844,115880.0,115870.0,0.007]
[1758302173513,2.18102844,115880.0,115870.0,0.34479727]
[1758302173702,2.18102844,115880.0,115870.0,0.007]
[1758302173899,2.18102844,115880.0,115870.0,0.34479727]
[1758302174098,2.18102844,115880.0,115870.0,0.007]
[1758302177018,1.5054339,115880.0,115870.0,0.007]
[1758302177216,2.18102844,115880.0,115870.0,0.007]
[1758302178010,2.18106844,115880.0,115870.0,0.007]
[1758302181215,1.39802844,115880.0,115870.0,0.007]
[1758302181420,2.18106844,115880.0,115870.0,0.007]
[1758302182320,1.39802844,115880.0,115870.0,0.007]
[1758302182520,2.18106844,115880.0,115870.0,0.007]
[1758302184015,1.39802844,115880.0,115870.0,0.007]
[1758302184619,2.18106844,115880.0,115870.0,0.007]
[1758302185125,1.39802844,115880.0,115870.0,0.007]
[1758302185626,2.18110844,115880.0,115870.0,0.007]
[1758302185832,1.39802844,115880.0,115870.0,0.007]
[1758302186033,2.18967966,115880.0,115870.0,0.007]
[1758302186835,2.27747693,115880.0,115870.0,0.007]
[1758302187031,0.0862612,115870.0,115860.0,0.01980741]
[1758302187335,1.12265574,115870.0,115860.0,0.01970741]
[1758302188137,1.90573574,115870.0,115860.0,0.01970741]
[1758302188330,1.90673574,115870.0,115860.0,0.02070741]
[1758302188731,1.90973574,115870.0,115860.0,0.03270741]
[1758302189737,0.78911169,115870.0,115860.0,0.03270741]
[1758302190138,1.57219169,115870.0,115860.0,0.03270741]
[1758302190338,0.78911169,115870.0,115860.0,0.03270741]
[1758302190939,1.57219169,115870.0,115860.0,0.03270741]
[1758302192841,0.78911169,115870.0,115860.0,0.03270741]
[1758302193137,1.57219169,115870.0,115860.0,0.03270741]
[1758302195034,1.57223169,115870.0,115860.0,0.03270741]
[1758302196340,0.78911169,115870.0,115860.0,0.03270741]
[1758302196740,1.57223169,115870.0,115860.0,0.03270741]
[1758302199238,1.93303169,115870.0,115860.0,0.03270741]
[1758302204849,1.93003169,115870.0,115860.0,0.02070741]
[1758302205039,1.93303169,115870.0,115860.0,0.02570741]
[1758302207147,2.27108218,115870.0,115860.0,1e-08]
[1758302207353,2.52108218,115870.0,115860.0,1e-08]
[1758302210341,2.52008218,115870.0,115860.0,1e-08]
[1758302210543,2.52108218,115870.0,115860.0,1e-08]
[1758302210749,1.73796218,115870.0,115860.0,1e-08]
[1758302211052,2.52108218,115870.0,115860.0,1e-08]
[1758302212353,0.0862685,115860.0,115850.0,0.0001]
[1758302212650,0.0862759,115850.0,115840.0,0.06885015]
[1758302212950,0.78512639,115850.0,115840.0,0.06875015]
[1758302213250,0.0862834,115840.0,115830.0,1.4404316]
[1758302213451,1.56825389,115840.0,115830.0,0.0203316]
[1758302214051,1.56825389,115840.0,115830.0,1.4403316]
[1758302214246,0.78513389,115840.0,115830.0,1.4403316]
[1758302214446,1.56925389,115840.0,115830.0,1.4403316]
[1758302214646,1.56925389,115840.0,115830.0,1.50917741]
[1758302214841,1.56925389,115840.0,115830.0,0.08917741]
[1758302215049,1.56925389,115840.0,115830.0,0.0203316]
[1758302215950,0.4480834,115840.0,115830.0,4e-05]
[1758302216148,1.56925389,115840.0,115830.0,4e-05]
[1758302216955,1.57325389,115840.0,115830.0,0.00704]
[1758302220959,1.60940389,115840.0,115830.0,0.00704]
[1758302221154,1.2713534,115840.0,115830.0,0.00704]
[1758302221354,1.60940389,115840.0,115830.0,0.00704]
[1758302221555,0.82628389,115840.0,115830.0,0.03006]
[1758302221755,1.60944389,115840.0,115830.0,0.03006]
[1758302222059,1.60944389,115840.0,115830.0,0.00704]
[1758302226859,0.82628389,115840.0,115830.0,0.00704]
[1758302227061,1.2714334,115840.0,115830.0,0.03006]
[1758302227365,1.60948389,115840.0,115830.0,0.00704]
[1758302227567,0.4882334,115840.0,115830.0,0.03006]
[1758302227759,1.60948389,115840.0,115830.0,0.03006]
[1758302228067,1.60948389,115840.0,115830.0,0.00704]
[1758302228463,1.61815244,115840.0,115830.0,0.00704]
[1758302230667,0.83495244,115840.0,115830.0,0.00704]
[1758302230867,1.61815244,115840.0,115830.0,0.00704]
[1758302231467,1.28010195,115840.0,115830.0,0.00704]
[1758302231667,1.61815244,115840.0,115830.0,0.00704]
[1758302235461,1.28010195,115840.0,115830.0,0.00704]
[1758302235662,1.95620293,115840.0,115830.0,0.00704]
[1758302236264,1.42300293,115840.0,115830.0,1e-07]
[1758302236467,2.20620293,115840.0,115830.0,1e-07]
[1758302236858,1.42300293,115840.0,115830.0,1e-07]
[1758302237064,2.20620293,115840.0,115830.0,1e-07]
[1758302238471,1.44031121,115840.0,115830.0,1e-07]
[1758302238662,2.22351121,115840.0,115830.0,1e-07]
[1758302239065,1.44031121,115840.0,115830.0,1e-07]
[1758302239463,1.54745023,115840.0,115830.0,1e-07]
[1758302239663,2.22355121,115840.0,115830.0,1e-07]
[1758302240371,1.44031121,115840.0,115830.0,1e-07]
[1758302240671,2.22355121,115840.0,115830.0,1e-07]
[1758302241065,1.44031121,115840.0,115830.0,1e-07]
[1758302241376,2.22355121,115840.0,115830.0,1e-07]
[1758302244266,1.44031121,115840.0,115830.0,1e-07]
[1758302245072,2.22371121,115840.0,115830.0,1e-07]
[1758302247466,1.44031121,115840.0,115830.0,1e-07]
[1758302247666,2.22379121,115840.0,115830.0,1e-07]
[1758302247971,1.44031121,115840.0,115830.0,1e-07]
[1758302248373,2.22379121,115840.0,115830.0,1e-07]
[1758302249973,2.56255792,115840.0,115830.0,1e-07]
[1758302250365,0.1224058,115810.0,115800.0,0.10874706]
[1758302250572,0.1224132,115800.0,115790.0,0.15171003]
[1758302250776,1.15979166,115800.0,115790.0,0.15171003]
[1758302250969,1.15979166,115800.0,115790.0,0.04306297]
[1758302251876,1.15979166,115800.0,115790.0,0.02319]
[1758302252070,1.15979166,115800.0,115790.0,0.03196455]
[1758302252374,1.15979166,115800.0,115780.0,0.29333706]
[1758302252375,0.1224207,115790.0,115780.0,0.29333706]
[1758302252677,1.60530993,115790.0,115780.0,0.18459]
[1758302252974,0.82150993,115790.0,115780.0,0.59192051]
[1758302253174,1.60326993,115790.0,115780.0,0.67824861]
[1758302253379,1.60326993,115790.0,115780.0,0.69163861]
[1758302253678,1.2649807,115790.0,115780.0,0.69163861]
[1758302253975,1.60526993,115790.0,115780.0,0.69163861]
[1758302254368,1.59238993,115790.0,115780.0,1.02992784]
[1758302254676,1.2541007,115790.0,115780.0,1.02992784]
[1758302254975,0.4531207,115790.0,115780.0,1.61821707]
[1758302255179,0.8760807,115790.0,115780.0,1.61821707]
[1758302255369,0.8762007,115790.0,115780.0,1.3885749]
[1758302256071,0.8762007,115790.0,115780.0,1.39735035]
[1758302256878,0.0923207,115790.0,115780.0,1.39735035]
[1758302257076,0.8764007,115790.0,115780.0,1.39735035]
[1758302257473,0.8996207,115790.0,115780.0,0.72077189]
[1758302257669,0.8996207,115790.0,115780.0,1.39735035]
[1758302258878,0.8996207,115790.0,115780.0,0.72077189]
[1758302259082,0.8996207,115790.0,115780.0,1.39735035]
[1758302259284,0.8996207,115790.0,115780.0,1.14735035]
[1758302259779,0.8996207,115790.0,115780.0,0.47077189]
[1758302259973,0.8996207,115790.0,115780.0,1.14735035]
[1758302262682,0.8996207,115790.0,115780.0,1.03870329]
[1758302266391,0.8996207,115790.0,115780.0,1.1472736]
[1758302270486,0.8996207,115790.0,115780.0,0.47069514]
[1758302270683,0.8996207,115790.0,115780.0,1.1472736]
[1758302271386,0.8995407,115790.0,115780.0,1.1472736]
[1758302271688,0.8995407,115790.0,115780.0,1.03870329]
[1758302272886,0.8995407,115790.0,115780.0,1.19335413]
[1758302273785,0.8763207,115790.0,115780.0,1.19335413]
[1758302274389,0.8989207,115790.0,115780.0,0.51677567]
[1758302274689,0.8989207,115790.0,115780.0,1.19335413]
[1758302276093,0.8760807,115790.0,115780.0,1.19335413]
[1758302277489,0.8760007,115790.0,115780.0,1.19335413]
[1758302277881,0.0923207,115790.0,115780.0,1.19335413]
[1758302278384,0.8759607,115790.0,115780.0,1.19335413]
[1758302280790,0.008,115790.0,115780.0,1.89244336]
[1758302280983,0.0863135,115800.0,115790.0,0.1223932]
[1758302281184,0.0863135,115800.0,115790.0,1.15977166]
[1758302281385,0.0863135,115800.0,115790.0,1.26855864]
[1758302281586,0.8703135,115800.0,115790.0,0.59198018]
[1758302281796,0.8703135,115800.0,115790.0,1.26855864]
[1758302282590,0.8703135,115800.0,115790.0,1.15977166]
[1758302282899,0.8929635,115800.0,115790.0,0.82148243]
[1758302283082,0.8939635,115800.0,115790.0,0.82348243]
[1758302283600,0.8999635,115800.0,115790.0,0.98213327]
[1758302287386,1.23825273,115800.0,115790.0,0.89582007]
[1758302287590,1.86183273,115800.0,115790.0,0.53502007]
[1758302287796,1.5235435,115800.0,115790.0,0.53502007]
[1758302287995,1.86183273,115800.0,115790.0,0.53502007]
[1758302288290,1.86183273,115800.0,115790.0,0.38036923]
[1758302289000,1.86183273,115800.0,115790.0,0.48908461]
[1758302289690,2.2177979,115800.0,115790.0,0.48908461]
[1758302289890,2.2177979,115800.0,115790.0,0.47599461]
[1758302291701,1.87950867,115800.0,115790.0,0.47599461]
[1758302293003,1.87950867,115800.0,115790.0,0.13770538]
[1758302293302,1.87950867,115800.0,115790.0,0.47599461]
[1758302293502,2.2177979,115800.0,115790.0,0.13770538]
[1758302294300,1.87950867,115800.0,115790.0,0.13770538]
[1758302295002,2.2177979,115800.0,115790.0,0.13770538]
[1758302295198,0.75721944,115800.0,115790.0,0.13770538]
[1758302295502,0.75721944,115800.0,115790.0,0.02899]
[1758302295503,2.2179179,115800.0,115790.0,0.02899]
[1758302296496,2.2179179,115800.0,115790.0,0.006]
[1758302296897,1.4337979,115800.0,115790.0,0.006]
[1758302297099,2.2178779,115800.0,115790.0,0.11471788]
[1758302301407,2.2177979,115800.0,115790.0,0.11471788]
[1758302304015,1.4337979,115800.0,115790.0,0.11471788]
[1758302304310,2.2182779,115800.0,115790.0,0.11471788]
[1758302304808,1.54165944,115800.0,115790.0,0.11471788]
[1758302305114,1.4337979,115800.0,115790.0,0.11471788]
[1758302305306,2.2181979,115800.0,115790.0,0.11471788]
[1758302305509,2.2181979,115800.0,115790.0,0.006]
[1758302306514,1.1837979,115800.0,115790.0,0.006]
[1758302306923,1.9682379,115800.0,115790.0,0.006]
[1758302307105,1.9682379,115800.0,115790.0,0.11471788]
[1758302308410,1.1837979,115800.0,115790.0,0.11471788]
[1758302308810,1.9681579,115800.0,115790.0,0.006]
[1758302309613,0.50721944,115800.0,115790.0,0.006]
[1758302309816,0.84564191,115800.0,115790.0,0.02866]
[1758302310013,0.84564191,115800.0,115790.0,0.006]
[1758302310407,1.63000191,115800.0,115790.0,0.006]
[1758302312014,1.63000191,115800.0,115790.0,0.11471788]
[1758302313114,1.63000191,115800.0,115790.0,0.006]
[1758302313506,0.84564191,115800.0,115790.0,0.006]
[1758302313918,1.63000191,115800.0,115790.0,0.006]
[1758302315214,1.63000191,115800.0,115790.0,0.11471788]
[1758302315612,1.63000191,115800.0,115790.0,0.006]
[1758302315911,1.62988191,115800.0,115790.0,0.006]
[1758302316218,1.96830438,115800.0,115790.0,0.006]
[1758302317723,1.96830438,115800.0,115790.0,0.08363671]
[1758302318013,1.97706681,115800.0,115790.0,0.08363671]
[1758302318220,1.97706681,115800.0,115790.0,0.006]
[1758302318410,1.97706681,115800.0,115790.0,0.11471788]
[1758302318916,1.96830438,115800.0,115790.0,0.11471788]
[1758302320322,1.96830438,115800.0,115790.0,0.006]
[1758302321025,1.96830438,115800.0,115790.0,0.08366621]
[1758302321220,1.96830438,115800.0,115790.0,0.11471788]
[1758302321622,1.96830438,115800.0,115790.0,0.006]
[1758302323228,1.96830438,115800.0,115790.0,0.08367046]
[1758302323420,1.97693958,115800.0,115790.0,0.08367046]
[1758302324428,1.97693958,115800.0,115790.0,0.006]
[1758302327036,1.97693958,115800.0,115790.0,0.08368171]
[1758302329933,0.51585464,115800.0,115790.0,0.08368171]
[1758302330125,1.97673958,115800.0,115790.0,0.08368171]
[1758302332537,1.19269958,115800.0,115790.0,0.08368171]
[1758302332834,1.62972191,115800.0,115790.0,0.10628171]
[1758302333334,1.61204597,115800.0,115790.0,0.10628171]
[1758302333534,0.82796597,115800.0,115790.0,0.10628171]
[1758302333734,1.61264597,115800.0,115790.0,0.10628171]
[1758302334336,1.2742235,115800.0,115790.0,0.10628171]
[1758302334530,1.61264597,115800.0,115790.0,0.10628171]
[1758302335030,0.4895435,115800.0,115790.0,0.10628171]
[1758302335225,1.61268597,115800.0,115790.0,0.10628171]
[1758302335434,1.61268597,115800.0,115790.0,0.0286]
[1758302335932,0.4895435,115800.0,115790.0,0.61702247]
[1758302336133,1.2743435,115800.0,115790.0,0.70858647]
[1758302336335,0.4767635,115800.0,115790.0,0.63092247]
[1758302336635,0.39045,115800.0,115790.0,0.71724297]
[1758302336828,0.878353,115800.0,115790.0,0.71724297]
[1758302337328,0.007,115800.0,115790.0,0.71724297]
[1758302337534,0.79212,115800.0,115790.0,0.71724297]
[1758302337936,0.878433,115800.0,115790.0,0.71724297]
[1758302339735,0.878433,115800.0,115790.0,0.84608876]
[1758302340136,0.878433,115800.0,115790.0,0.84608545]
[1758302340334,0.007,115800.0,115790.0,0.84608545]
[1758302340538,0.79216,115800.0,115790.0,1.23730337]
[1758302340727,0.79244,115800.0,115790.0,1.23944297]
[1758302340929,0.007,115800.0,115790.0,1.59802603]
[1758302341234,0.79244,115800.0,115790.0,1.59802603]
[1758302341839,0.00150991,115800.0,115790.0,1.59802603]
[1758302342223,0.00015419,115800.0,115790.0,1.59802603]
[1758302342425,0.37504,115820.0,115800.0,0.0863118]
[1758302342623,0.37504,115820.0,115810.0,0.92888553]
[1758302342832,0.37794865,115830.0,115820.0,0.0862981]
[1758302343035,0.88911935,115830.0,115820.0,0.45959057]
[1758302343725,0.88903935,115830.0,115820.0,0.52846303]
[1758302345131,0.91718935,115830.0,115820.0,0.64495049]
[1758302345939,0.91818935,115830.0,115820.0,0.64895049]
[1758302347936,0.91782935,115830.0,115820.0,0.64895049]
[1758302348338,0.91782935,115830.0,115820.0,0.61773892]
[1758302349239,0.91782935,115830.0,115820.0,0.54046303]
[1758302352341,0.91782935,115830.0,115820.0,0.20204056]
[1758302352540,0.91782935,115830.0,115820.0,0.54046303]
[1758302353935,0.89467935,115830.0,115820.0,0.54046303]
[1758302355341,0.91782935,115830.0,115820.0,0.54046303]
[1758302355837,0.89467935,115830.0,115820.0,0.54046303]
[1758302356743,0.89527935,115830.0,115820.0,0.54046303]
[1758302357132,0.89519935,115830.0,115820.0,0.54046303]
[1758302357439,0.91834935,115830.0,115820.0,0.54046303]
[1758302361147,0.91834935,115830.0,115820.0,0.27931645]
[1758302361346,0.91834935,115830.0,115820.0,0.61773892]
[1758302361551,0.91866935,115830.0,115820.0,0.61773892]
[1758302363251,1.63133182,115830.0,115820.0,0.17932835]
[1758302363547,1.88133182,115830.0,115820.0,0.10205246]
[1758302364144,1.88133182,115830.0,115820.0,0.17932835]
[1758302365237,1.54290935,115830.0,115820.0,0.17932835]
[1758302365442,1.88133182,115830.0,115820.0,0.17932835]
[1758302366056,1.88133182,115830.0,115820.0,0.15814835]
[1758302366246,1.88133182,115830.0,115820.0,0.08087246]
[1758302366844,1.88133182,115830.0,115820.0,0.10335246]
[1758302367246,1.88209182,115830.0,115820.0,0.18062835]
[1758302368257,1.09525182,115830.0,115820.0,0.18062835]
[1758302368462,1.88193182,115830.0,115820.0,0.18062835]
[1758302368854,1.09525182,115830.0,115820.0,0.18062835]
[1758302369064,1.88189182,115830.0,115820.0,0.18062835]
[1758302369656,1.88185182,115830.0,115820.0,0.18062835]
[1758302369849,1.88185182,115830.0,115820.0,0.10335246]
[1758302370257,1.54342935,115830.0,115820.0,0.10335246]
[1758302370759,1.88173182,115830.0,115820.0,0.10335246]
[1758302371754,1.88149513,115830.0,115820.0,0.44153824]
[1758302372253,0.75682935,115830.0,115820.0,0.44153824]
[1758302372453,1.52974935,115830.0,115820.0,0.45493824]
[1758302372652,1.86805513,115830.0,115820.0,0.54123624]
[1758302372852,1.86805513,115830.0,115820.0,0.45493824]
[1758302373052,1.88149513,115830.0,115820.0,0.56363814]
[1758302374261,1.88149513,115830.0,115820.0,0.45493824]
[1758302374754,1.09501513,115830.0,115820.0,0.45493824]
[1758302374958,1.88149513,115830.0,115820.0,0.45493824]
[1758302375163,1.52982935,115830.0,115820.0,0.56363814]
[1758302375360,0.13258935,115830.0,115820.0,0.98812192]
[1758302375660,0.13258935,115830.0,115820.0,1.31576266]
[1758302375961,0.91942935,115830.0,115820.0,1.20706276]
[1758302376454,0.13258935,115830.0,115820.0,1.12942202]
[1758302376657,0.89639935,115830.0,115820.0,1.12942202]
[1758302379259,0.89639935,115830.0,115820.0,0.87942202]
[1758302379456,0.91812935,115830.0,115820.0,0.87942202]
[1758302380662,0.91812935,115830.0,115820.0,0.88600202]
[1758302383062,1.26975513,115830.0,115820.0,0.12333246]
[1758302383366,1.63055513,115830.0,115820.0,0.44811824]
[1758302385063,1.88055513,115830.0,115820.0,0.10993246]
[1758302385271,1.88055513,115830.0,115820.0,0.44811824]
[1758302385767,1.88055513,115830.0,115820.0,0.10993246]
[1758302388167,1.54236935,115830.0,115820.0,0.10993246]
[1758302388359,1.88055513,115830.0,115820.0,0.10993246]
[1758302388762,1.88055513,115830.0,115820.0,0.21863236]
[1758302390263,1.88055513,115830.0,115820.0,0.55681814]
[1758302390766,1.09359513,115830.0,115820.0,0.55681814]
[1758302390968,1.88119513,115830.0,115820.0,0.55681814]
[1758302391165,1.88111513,115830.0,115820.0,0.55681814]
[1758302392866,1.88095513,115830.0,115820.0,0.55681814]
[1758302393167,1.09359513,115830.0,115820.0,0.55681814]
[1758302393363,1.88095513,115830.0,115820.0,0.21863236]
[1758302393666,1.88095513,115830.0,115820.0,0.55681814]
[1758302393866,1.88091513,115830.0,115820.0,0.55681814]
[1758302396567,1.09359513,115830.0,115820.0,0.55681814]
[1758302396770,1.88067513,115830.0,115820.0,0.55681814]
[1758302402172,1.88067513,115830.0,115820.0,0.44811824]
[1758302402574,1.88067513,115830.0,115820.0,0.55685529]
[1758302403369,1.96886091,115830.0,115820.0,0.08745246]
[1758302403575,1.54248935,115830.0,115820.0,0.08745246]
[1758302403774,2.21886091,115830.0,115820.0,0.19618951]
[1758302404574,2.21886091,115830.0,115820.0,0.08745246]
[1758302407279,0.50540935,115830.0,115820.0,0.10981246]
[1758302407478,1.63031513,115830.0,115820.0,0.44799824]
[1758302408376,1.29240935,115830.0,115820.0,0.44799824]
[1758302408579,1.63059513,115830.0,115820.0,0.44799824]
[1758302409377,1.63059513,115830.0,115820.0,0.10981246]
[1758302409575,1.63059513,115830.0,115820.0,0.44799824]
[1758302409782,1.63059513,115830.0,115820.0,0.10981246]
[1758302411677,1.63043513,115830.0,115820.0,0.10981246]
[1758302411977,1.63043513,115830.0,115820.0,0.44799824]
[1758302413678,1.63043513,115830.0,115820.0,0.10981246]
[1758302415180,1.96862091,115830.0,115820.0,0.08745246]
[1758302415576,2.21862091,115830.0,115820.0,0.08745246]
[1758302420583,1.43178091,115830.0,115820.0,0.08745246]
[1758302420785,2.21834091,115830.0,115820.0,0.08745246]
[1758302421083,1.43178091,115830.0,115820.0,0.08745246]
[1758302421272,1.09359513,115830.0,115820.0,0.10981246]
[1758302421775,1.88007513,115830.0,115820.0,0.10981246]
[1758302422385,1.09359513,115830.0,115820.0,0.10981246]
[1758302422579,1.09359513,115830.0,115820.0,0.04094]
[1758302422980,1.87999513,115830.0,115820.0,0.04094]
[1758302423185,1.87999513,115830.0,115820.0,0.01858]
[1758302424088,2.21818091,115830.0,115820.0,0.01858]
[1758302426085,1.54180935,115830.0,115820.0,0.01858]
[1758302426285,2.21818091,115830.0,115820.0,0.01858]
[1758302429094,1.87999513,115830.0,115820.0,0.01858]
[1758302429289,2.21818091,115830.0,115820.0,0.01858]
[1758302430290,1.43178091,115830.0,115820.0,0.01858]
[1758302430490,1.87955513,115830.0,115820.0,0.01858]
[1758302430687,1.09359513,115830.0,115820.0,0.01858]
[1758302430888,1.87971513,115830.0,115820.0,0.01858]
[1758302431087,1.87967513,115830.0,115820.0,0.01858]
[1758302431882,1.87975677,115830.0,115820.0,0.01858]
[1758302432489,1.09367677,115830.0,115820.0,0.01858]
[1758302432678,1.87975677,115830.0,115820.0,0.01858]
[1758302434388,2.21802419,115830.0,115820.0,0.01858]
[1758302434586,0.1216384,115820.0,115810.0,0.10758909]
[1758302434888,1.60654582,115820.0,115810.0,0.10758909]
[1758302435084,1.60654582,115820.0,115790.0,0.17481143]
[1758302435085,0.1216533,115800.0,115790.0,0.19632143]
[1758302435391,1.2684533,115800.0,115790.0,0.04167059]
[1758302435782,0.4824533,115800.0,115790.0,0.04167059]
[1758302435982,1.2683733,115800.0,115790.0,0.04167059]
[1758302436492,1.2693733,115800.0,115790.0,0.04467059]
[1758302437887,1.96844072,115800.0,115790.0,0.02316059]
[1758302438096,1.98579974,115800.0,115790.0,0.02316059]
[1758302438489,1.99179974,115800.0,115790.0,0.02316059]
[1758302444698,1.99195974,115800.0,115790.0,0.02316059]
[1758302445700,1.99195974,115800.0,115790.0,0.003]
[1758302445891,1.20587974,115800.0,115790.0,0.003]
[1758302446092,1.99263974,115800.0,115790.0,0.003]
[1758302447403,1.99255974,115800.0,115790.0,0.003]
[1758302450505,1.20587974,115800.0,115790.0,0.003]
[1758302450705,1.99243974,115800.0,115790.0,0.003]
[1758302453608,1.20587974,115800.0,115790.0,0.003]
[1758302454111,1.99239974,115800.0,115790.0,0.003]
[1758302455503,2.24227974,115800.0,115790.0,1e-07]
[1758302456605,2.58054716,115800.0,115790.0,1e-07]
[1758302457505,2.24227974,115800.0,115790.0,1e-07]
[1758302457704,2.24211974,115800.0,115790.0,1e-07]
[1758302457905,1.79414716,115800.0,115790.0,1e-07]
[1758302458102,2.58038716,115800.0,115790.0,1e-07]
[1758302458809,1.79414716,115800.0,115790.0,1e-07]
[1758302459005,1.45587974,115800.0,115790.0,1e-07]
[1758302459211,2.24203974,115800.0,115790.0,1e-07]
[1758302460016,1.45587974,115800.0,115790.0,1e-07]
[1758302460316,0.86761232,115800.0,115790.0,0.36149752]
[1758302460519,1.65401232,115800.0,115790.0,0.36149752]
[1758302460707,0.86761232,115800.0,115790.0,0.0232301]
[1758302460911,1.65401232,115800.0,115790.0,0.0232301]
[1758302461113,1.65401232,115800.0,115790.0,1e-07]
[1758302461716,0.86761232,115800.0,115790.0,1e-07]
[1758302461910,1.65401232,115800.0,115790.0,1e-07]
[1758302463109,3.47329232,115800.0,115790.0,1e-07]
[1758302463918,3.81155974,115800.0,115790.0,1e-07]
[1758302467115,3.47329232,115800.0,115790.0,0.0232301]
[1758302467323,3.81155974,115800.0,115790.0,0.0232301]
[1758302467522,3.81155974,115800.0,115790.0,1e-07]
[1758302469020,3.47385232,115800.0,115790.0,0.36149752]
[1758302469421,3.47385232,115800.0,115790.0,0.4390995]
[1758302469622,3.47385232,115800.0,115790.0,0.10083208]
[1758302471925,3.47385232,115800.0,115790.0,0.07760208]
[1758302473026,3.47385232,115800.0,115790.0,0.4158695]
[1758302476023,2.68689232,115800.0,115790.0,0.4390995]
[1758302476224,3.47353232,115800.0,115790.0,0.61149752]
[1758302476529,3.47353232,115800.0,115790.0,0.7018795]
[1758302476830,3.47369232,115800.0,115790.0,0.73284134]
[1758302477129,3.11289232,115800.0,115790.0,0.73284134]
[1758302480228,3.11289232,115800.0,115790.0,0.81916194]
[1758302480432,2.31339232,115800.0,115790.0,0.81916194]
[1758302480732,3.09999232,115800.0,115790.0,0.81916194]
[1758302482338,3.09999232,115800.0,115790.0,0.71059812]
[1758302483934,3.09999232,115800.0,115790.0,0.81921261]
[1758302484834,3.11282232,115800.0,115790.0,0.81921261]
[1758302485731,3.09999232,115800.0,115790.0,0.81921261]
[1758302487934,2.31339232,115800.0,115790.0,0.71059812]
[1758302488233,3.09959232,115800.0,115790.0,0.71059812]
[1758302488428,3.09959232,115800.0,115790.0,0.81921261]
[1758302491927,1.28031232,115800.0,115790.0,0.81921261]
[1758302492641,1.28031232,115800.0,115790.0,0.73289201]
[1758302493239,1.28031232,115800.0,115790.0,0.81921271]
[1758302493837,1.28031232,115800.0,115790.0,1.15749235]
[1758302494438,1.28031232,115800.0,115790.0,0.81921882]
[1758302495737,1.28031232,115800.0,115790.0,1.15749235]
[1758302497339,1.28031232,115800.0,115790.0,1.07117165]
[1758302497542,1.28031232,115800.0,115790.0,0.73289812]
[1758302498131,1.28031232,115800.0,115790.0,0.81921882]
[1758302499442,1.28031232,115800.0,115790.0,0.56921882]
[1758302500734,0.49411232,115800.0,115790.0,0.56921882]
[1758302501034,1.27955232,115800.0,115790.0,0.56921882]
[1758302507245,1.27963232,115800.0,115790.0,0.46060433]
[1758302509347,0.49411232,115800.0,115790.0,0.46060433]
[1758302509542,0.49411232,115800.0,115790.0,0.79887786]
[1758302509743,1.25683232,115800.0,115790.0,0.79887786]
[1758302510041,1.27852232,115800.0,115790.0,0.81873963]
[1758302513345,1.27852232,115800.0,115790.0,0.97339047]
[1758302514237,1.27852232,115800.0,115790.0,0.81873963]
[1758302514435,0.49316232,115800.0,115790.0,0.81873963]
[1758302514641,1.27848232,115800.0,115790.0,0.81873963]
[1758302521856,1.27848232,115800.0,115790.0,0.92754751]
[1758302523055,0.91768232,115800.0,115790.0,0.92754751]
[1758302523951,0.13236232,115800.0,115790.0,0.92754751]
[1758302524252,0.13236232,115800.0,115790.0,0.81873963]
[1758302524449,0.007,115800.0,115790.0,1.76781316]
[1758302524652,0.79184,115800.0,115790.0,1.59093963]
[1758302525652,0.79184,115800.0,115790.0,1.69969279]
[1758302526153,0.79184,115800.0,115790.0,1.59093963]
[1758302527049,0.79184,115800.0,115790.0,1.5912894]
[1758302527746,0.007,115800.0,115790.0,1.92956293]
[1758302528247,0.007,115800.0,115790.0,1.5912894]
[1758302529353,0.007,115800.0,115790.0,2.3761294]
[1758302529852,0.007,115800.0,115790.0,2.71440293]
[1758302530053,0.007,115800.0,115790.0,1.92956293]
[1758302530353,0.007,115800.0,115790.0,2.3761294]
[1758302530850,0.007,115800.0,115790.0,2.71410068]
[1758302531852,0.007,115800.0,115790.0,2.37582715]
[1758302532353,0.007,115800.0,115790.0,2.48443984]
[1758302533255,0.007,115800.0,115790.0,2.82271337]
[1758302533551,0.007,115800.0,115790.0,2.82329052]
[1758302533759,0.7848,115820.0,115810.0,0.03625]
[1758302533948,0.7848,115820.0,115810.0,1.18038882]
[1758302535156,0.8710983,115820.0,115810.0,1.18038882]
[1758302535358,0.8760983,115820.0,115810.0,1.290916]
[1758302535651,0.8770983,115820.0,115810.0,1.18238882]
[1758302536053,0.8770983,115820.0,115810.0,1.29091538]
[1758302537146,0.8770983,115820.0,115810.0,1.27042942]
[1758302537356,0.006,115820.0,115810.0,1.29060852]
[1758302538157,0.0922984,115820.0,115810.0,1.29060852]
[1758302540961,0.006,115820.0,115810.0,1.29060852]
[1758302541160,0.79072,115820.0,115810.0,1.29060852]
[1758302541460,0.006,115820.0,115810.0,1.29060852]
[1758302541759,0.79072,115820.0,115810.0,1.18208196]
[1758302542558,0.79072,115820.0,115810.0,1.29053976]
[1758302543261,0.8770184,115820.0,115810.0,1.29053976]
[1758302544859,0.8770184,115820.0,115810.0,1.29015679]
[1758302546460,0.8770184,115820.0,115810.0,1.18169899]
[1758302548363,0.8770184,115820.0,115810.0,1.16190286]
[1758302548562,0.79068,115820.0,115810.0,1.18236114]
[1758302549969,0.006,115820.0,115810.0,1.18236114]
[1758302550170,0.79068,115820.0,115810.0,1.18236114]
[1758302552371,0.79068,115820.0,115810.0,1.33752212]
[1758302553771,0.79068,115820.0,115810.0,0.99907982]
[1758302555172,0.006,115820.0,115810.0,0.99907982]
[1758302558079,0.006,115820.0,115810.0,0.84391884]
[1758302559883,0.02762,115820.0,115810.0,0.84391884]
[1758302560086,0.006,115820.0,115810.0,0.84391884]
[1758302562279,0.02762,115820.0,115810.0,0.84391884]
[1758302562585,0.006,115820.0,115810.0,0.84391884]
[1758302568492,0.006,115820.0,115810.0,0.99907982]
[1758302569702,0.006,115820.0,115810.0,2.40907982]
[1758302569989,0.0922983,115820.0,115810.0,2.40907982]
[1758302570194,0.006,115820.0,115810.0,2.40907982]
[1758302572102,0.006,115820.0,115810.0,2.54778458]
[1758302572290,0.00474193,115820.0,115810.0,2.54778458]
[1758302572594,0.00474193,115820.0,115810.0,2.43801408]
[1758302572792,0.5288291,115850.0,115840.0,0.1207735]
[1758302572997,0.02182,115850.0,115840.0,0.56760303]
[1758302573196,3.10166453,115860.0,115850.0,0.03449]
[1758302573389,3.10166453,115860.0,115850.0,0.48131953]
[1758302573799,2.74086453,115860.0,115850.0,0.56759553]